[Event "FIDE Candidates 2024"]
[Site "Toronto"]
[Date "2024.04.17"]
[Round "11.1"]
[White "Praggnanandhaa R"]
[Black "Nakamura, Hikaru"]
[Result "0-1"]
[ECO "D06"]
[WhiteElo "2747"]
[BlackElo "2789"]
[Annotator "TA"]
[PlyCount "108"]
[EventDate "2024.04.02"]
[EventType "tourn"]
[EventCountry "CAN"]
[SourceTitle "playchess.com"]
[Source "ChessBase"]
[SourceQuality "1"]
[TimeControl "40/7200:1800+30"]

{[%evp 16,108,43,37,40,25,41,14,0,5,0,7,8,6,1,0,0,0,14,0,0,0,0,-33,-34,-25,0,0,0,0,0,0,9,0,0,-17,-25,-34,-34,-98,-96,-84,-33,-171,-179,-215,-114,-179,-140,-414,-434,-431,-432,-495,-461,-453,-429,-431,-428,-370,-369,-312,-372,-383,-363,-397,-402,-390,-369,-385,-385,-516,-507,-569,-572,-572,-533,-568,-580,-575,-568,-547,-517,-833,-800,-845,-795,-925,-902,-29969,-29970,-29984,-29985,-29988,-29989]} 1. d4 {[%emt 0:00:00]} d5 {[%emt 0:00:09]} 2. Nf3 {[%emt 0:00:55][%cal Bg1f3,Bf3d4,Bd4b3,Bb3d2,Bd2c4][%mdl 32]} Nf6 {[%emt 0:00:28]} 3. c4 {[%emt 0:00:07]} c5 {[%emt 0:00:23]} 4. cxd5 {[%emt 0:09:46]} cxd4 {[%emt 0:02:55]} 5. Qxd4 {[%emt 0:09:24]} Qxd5 {[%emt 0:00:21]} 6. Nc3 {[%emt 0:00:10]} Qxd4 {[%emt 0:00:05]} 7. Nxd4 {[%emt 0:00:05]} a6 {[%emt 0:00:04]} 8. g3 {[%emt 0:06:55]} e5 {[%emt 0:00:34]} 9. Nb3 {[%emt 0:02:03]} Nc6 {[%emt 0:00:46]} 10. Bg2 {[%emt 0:01:54]} a5 {[%emt 0:00:26]} 11. Nb5 {[%emt 0:12:45]} Bb4+ {[%emt 0:02:43] The position is equal.} 12. Bd2 {[%emt 0:00:34]} Ke7 {[%emt 0:07:58]} 13. a3 {[%emt 0:04:47]} Bxd2+ {[%emt 0:03:39]} 14. Nxd2 {[%emt 0:00:06]} a4 {[%emt 0:17:31]} 15. Nc4 {[%emt 0:10:32]} Be6 {[%emt 0:00:42]} 16. Rc1 {[%emt 0:01:33]} Ra6 {[%emt 0:00:40]} 17. O-O {[%emt 0:11:56]} Rd8 {[%emt 0:00:25]} 18. Ne3 {[%emt 0:03:28]} Ra5 {[%emt 0:27:51]} 19. Bxc6 {[%emt 0:08:53]} bxc6 {[%emt 0:00:20]} 20. Nc3 {[%emt 0:00:05]} Bb3 {[%emt 0:01:31]} 21. Nb1 {[%emt 0:02:13]} Ra6 {[%emt 0:06:50]} 22. f4 {[%emt 0:02:40]} e4 {[%emt 0:01:40]} 23. Kf2 {[%emt 0:02:33]} Rb6 {[%emt 0:03:05]} 24. Nc3 {[%emt 0:03:21]} g6 {[%emt 0:01:46]} 25. Rb1 {[%emt 0:06:35]} Nd5 {[%emt 0:05:40]} 26. Rbc1 {[%emt 0:03:41]} f5 {[%emt 0:00:53]} 27. g4 {[%emt 0:01:18]} (27. h3 $15) 27... fxg4 $1 $17 {[%emt 0:04:44]} ({Much worse is} 27... Nxf4 $6 28. gxf5 Rd4 29. Kg3 $11) 28. Nxg4 {[%emt 0:01:47]} Nxf4 {[%emt 0:01:34]} (28... Rf8 $1 $17 {...Nxc3 is the strong threat.} 29. Kg3 Nxc3 30. Rxc3 Bd5) 29. Ke3 {[%emt 0:00:56]} (29. Ke1 $1 $15 Ne6 30. Ne5) 29... Nd5+ $19 {[%emt 0:02:05]} 30. Kxe4 {[%emt 0:00:02]} Nxc3+ {[%emt 0:03:39]} (30... c5 $1 $19 31. Kf3 h5) 31. bxc3 {[%emt 0:00:14]} (31. Rxc3 $17 Bd5+ 32. Ke3) 31... c5 {[%emt 0:00:54]} 32. Rf4 $2 {[%emt 0:02:22][%mdl 8192]} (32. Kf4 $17 {might work better.}) 32... Bd5+ $1 {[%emt 0:03:54]} 33. Ke3 {[%emt 0:00:07] [#]} h5 $1 {[%emt 0:00:02]} 34. c4 {[%emt 0:01:56]} Ba8 {[%emt 0:00:08]} 35. Nh6 {[%emt 0:00:08]} Re6+ {[%emt 0:00:35]} 36. Kf2 {[%emt 0:00:01]} Rf6 {[%emt 0:00:05]} 37. Kg3 {[%emt 0:00:26]} Rh8 {[%emt 0:04:56]} 38. Rxf6 {[%emt 0:00:59]} Kxf6 {[%emt 0:00:05][%mdl 4096] Endgame. KRB-KRN} 39. Rf1+ {[%emt 0:00:01] [#]} Kg7 $1 {[%emt 0:00:06]} 40. Nf5+ {[%emt 0:00:00]} gxf5 {[%emt 0:00:00]} 41. Rxf5 {[%emt 0:00:09] KRB-KR} Rc8 {[%emt 0:05:08]} 42. Rxh5 {[%emt 0:03:40]} Bb7 {[%emt 0:00:14]} 43. Kf4 {[%emt 0:02:27]} Ba6 {[%emt 0:00:47]} 44. Ke5 {[%emt 0:00:06]} Kg6 {[%emt 0:00:22]} 45. Rh4 {[%emt 0:01:56]} Kg5 {[%emt 0:00:03] Prevents Rg4+} 46. Rh3 {[%emt 0:00:37]} Bxc4 {[%emt 0:00:12]} 47. Rg3+ {[%emt 0:00:04]} Kh6 {[%emt 0:01:16]} 48. e4 {[%emt 0:00:30]} Rc6 {[%emt 0:00:28]} 49. Kf5 {[%emt 0:00:49]} (49. Rg2 $142) 49... Bf7 {[%emt 0:00:21]} 50. Ke5 {[%emt 0:00:33]} c4 {[%emt 0:00:35] Threatens to win with ...c3.} 51. Kd4 {[%emt 0:00:07]} Rd6+ {[%emt 0:00:21]} 52. Kc5 {[%emt 0:00:09]} Rd3 {[%emt 0:00:20] Black mates.} 53. Kb4 {[%emt 0:00:06]} Rb3+ {[%emt 0:00:37]} 54. Kxa4 {[%emt 0:00:13]} Rxg3 {[%emt 0:00:10] Weighted Error Value: White=0.53/Black=0.10 (very precise) .  Loses game:     	White=1     	---        Mistake:       	White=4     	Black=2      Inaccurate:     	White=3     	---        OK:         	White=12    	Black=13     Best:        	White=4     	Black=6      Strong:       	---       	Black=4} 0-1

[Event "FIDE Candidates 2024"]
[Site "Toronto"]
[Date "2024.04.17"]
[Round "11.3"]
[White "Gukesh D"]
[Black "Caruana, Fabiano"]
[Result "1/2-1/2"]
[ECO "D35"]
[WhiteElo "2743"]
[BlackElo "2803"]
[Annotator "TA"]
[PlyCount "80"]
[EventDate "2024.04.02"]
[EventType "tourn"]
[EventCountry "CAN"]
[SourceTitle "playchess.com"]
[Source "ChessBase"]
[SourceQuality "1"]
[TimeControl "40/7200:1800+30"]

{[%evp 13,80,22,22,10,10,8,12,18,18,14,23,16,6,9,16,8,16,15,24,16,33,28,40,40,41,64,42,42,63,23,43,20,48,16,20,30,13,10,18,22,19,0,0,20,22,0,44,0,0,0,0,0,0,0,0,0,0,0,0,0,0,0,0,0,0,0,0,0,0]} 1. d4 {[%emt 0:00:03]} Nf6 {[%emt 0:00:06]} 2. c4 {[%emt 0:00:06]} e6 {[%emt 0:00:04]} 3. Nf3 {[%emt 0:00:06]} d5 {[%emt 0:00:05]} 4. Nc3 {[%emt 0:00:07]} Nbd7 {[%emt 0:00:06]} 5. cxd5 {[%emt 0:06:20]} exd5 {[%emt 0:00:06]} 6. Bg5 {[%emt 0:00:33]} h6 {[%emt 0:00:11] D35: Queen's Gambit Declined: Exchange Variation.} 7. Bh4 {[%emt 0:00:06]} c6 {[%emt 0:00:07]} 8. e3 {[%emt 0:00:31]} g5 {[%emt 0:00:18]} 9. Bg3 {[%emt 0:00:08]} Nh5 {[%emt 0:00:06]} 10. Bd3 {[%emt 0:02:19]} Nxg3 {[%emt 0:00:34]} 11. hxg3 {[%emt 0:00:06]} Bg7 {[%emt 0:00:14]} 12. O-O {[%emt 0:08:00]} Nb6 {[%emt 0:00:30]} 13. Qc2 {[%emt 0:02:42]} O-O {[%emt 0:00:36]} 14. b4 {[%emt 0:04:32]} Qe7 {[%emt 0:00:37]} 15. Rab1 {[%emt 0:02:04]} Be6 {[%emt 0:05:42]} 16. a4 {[%emt 0:07:45]} Nd7 $146 {[%emt 0:06:04]} ({Predecessor:} 16... Nc4 17. Bxc4 dxc4 18. Rfd1 Rfd8 19. b5 a5 20. bxc6 bxc6 21. Rb6 Qc7 22. Rb2 Qc8 {½-½ Ingersol,H (2398)-Timko,V (2387) UKR-USA email 2015 [8]}) 17. a5 {[%emt 0:14:02]} a6 {[%emt 0:16:53]} 18. Na4 {[%emt 0:00:26]} Rad8 {[%emt 0:09:08]} 19. Nc5 {[%emt 0:05:02]} Nxc5 {[%emt 0:00:21]} 20. bxc5 {[%emt 0:01:22]} f5 $1 {[%emt 0:01:11]} 21. Qc3 {[%emt 0:36:35]} Rf7 {[%emt 0:04:03]} 22. Rb4 {[%emt 0:03:38]} Qc7 {[%emt 0:16:58]} 23. Rb2 {[%emt 0:01:03]} Re8 {[%emt 0:06:08]} 24. Ne5 {[%emt 0:00:56]} Bxe5 {[%emt 0:00:04]} 25. dxe5 {[%emt 0:00:03]} h5 {[%emt 0:00:25]} 26. f4 {[%emt 0:01:20]} Qd8 {[%emt 0:01:49]} 27. fxg5 {[%emt 0:07:03]} Qxg5 {[%emt 0:00:14]} 28. Rf3 {[%emt 0:00:07]} Qg7 {[%emt 0:09:47]} 29. Rbf2 {[%emt 0:00:28]} Bd7 {[%emt 0:01:59]} 30. Qb4 {[%emt 0:03:19]} (30. Bxf5 Qxe5 31. Qc2 (31. Qxe5 Rxe5 32. Bh3 Rfe7 $17) 31... Rxf5 32. Rxf5 Bxf5 33. Rxf5 Qxg3 $11 (33... Qxe3+ 34. Kh2 $11)) 30... Bc8 {[%emt 0:06:25]} 31. Bxf5 {[%emt 0:00:26]} Rxf5 {[%emt 0:00:22]} 32. Rxf5 {[%emt 0:00:04]} Bxf5 {[%emt 0:00:03]} 33. Rxf5 {[%emt 0:00:02]} Rxe5 {[%emt 0:00:18]} 34. Rxe5 {[%emt 0:00:36]} Qxe5 {[%emt 0:00:05]} 35. Qxb7 {[%emt 0:00:04]} Qxg3 {[%emt 0:01:00]} 36. Qxc6 {[%emt 0:00:58]} Qe1+ {[%emt 0:00:18]} 37. Kh2 {[%emt 0:00:07]} Qh4+ {[%emt 0:00:03]} 38. Kg1 {[%emt 0:00:01]} Qe1+ {[%emt 0:00:04]} 39. Kh2 {[%emt 0:00:04]} Qh4+ {[%emt 0:00:04]} 40. Kg1 {[%emt 0:00:00]} Qe1+ {[%emt 0:00:00]} 1/2-1/2

[Event "FIDE Candidates 2024"]
[Site "Toronto"]
[Date "2024.04.17"]
[Round "11.4"]
[White "Firouzja, Alireza"]
[Black "Abasov, Nijat"]
[Result "1-0"]
[ECO "D04"]
[WhiteElo "2760"]
[BlackElo "2632"]
[Annotator "TA"]
[PlyCount "47"]
[EventDate "2024.04.02"]
[EventType "tourn"]
[EventCountry "CAN"]
[SourceTitle "playchess.com"]
[Source "ChessBase"]
[SourceQuality "1"]
[TimeControl "40/7200:1800+30"]

{[%evp 18,47,2,0,4,-8,15,23,27,14,27,24,24,21,118,115,150,159,147,160,150,152,158,156,471,476,464,469,472,478,456,461]} 1. Nf3 {[%emt 0:00:03]} Nf6 {[%emt 0:00:10]} 2. b3 {[%emt 0:00:25]} c5 {[%emt 0:00:41]} 3. Bb2 {[%emt 0:00:40]} Nc6 {[%emt 0:00:24]} 4. e3 {[%emt 0:00:57]} g6 {[%emt 0:01:18]} 5. d4 {[%emt 0:06:46]} cxd4 {[%emt 0:02:32]} 6. Nxd4 {[%emt 0:00:13]} Bg7 {[%emt 0:00:27]} 7. Be2 {[%emt 0:00:56]} O-O {[%emt 0:00:58]} 8. O-O {[%emt 0:00:52]} Nxd4 {[%emt 0:03:28]} 9. Bxd4 {[%emt 0:00:16]} d5 {[%emt 0:05:26]} 10. Nd2 {[%emt 0:03:23]} Qd6 {[%emt 0:08:11]} 11. c4 {[%emt 0:05:33]} Rd8 {[%emt 0:09:19]} 12. cxd5 {[%emt 0:05:56]} Qxd5 {[%emt 0:02:11] White has an edge.} 13. Bf3 {[%emt 0:09:16]} Qf5 {[%emt 0:03:37]} 14. Rc1 {[%emt 0:04:38]} Ne8 {[%emt 0:22:34]} 15. Rc5 {[%emt 0:03:50]} e5 {[%emt 0:00:17] [#]} (15... Qe6 $11) 16. Nc4 $1 $16 {[%emt 0:03:51]} f6 {[%emt 0:00:46] [#] aiming for ...Qe6.} 17. Rd5 $1 {[%emt 0:02:45]} Rxd5 {[%emt 0:10:18]} ({Avoid the trap} 17... Be6 $2 18. e4 $18) 18. Bxd5+ {[%emt 0:00:28]} Kh8 {[%emt 0:00:03]} 19. Bc5 {[%emt 0:01:13]} Qd7 {[%emt 0:01:15]} 20. Bf3 $36 {[%emt 0:04:43][%mdl 2048] Hoping for Qxd7. Black is under strong pressure. White is much more active.} Rb8 $2 {[%emt 0:07:25]} (20... Qc7 $16 {is tougher.}) 21. Bxa7 $18 {[%emt 0:01:54] White is clearly winning.} Ra8 {[%emt 0:00:06]} 22. Nb6 $1 {[%emt 0:00:16][%csl LRa8,LRd7]} Qxd1 {[%emt 0:00:05]} 23. Rxd1 {[%emt 0:00:03]} Rxa7 {[%emt 0:00:04]} 24. Rd8 {[%emt 0:00:25] Black got outplayed after the opening.   Weighted Error Value: White=0.02 (flawless) /Black=0.45.  Loses game:     	---       	Black=1      Mistake:       	---       	Black=1      Inaccurate:     	---       	Black=1      OK:         	White=4     	Black=5      Best:        	White=2     	Black=1      Strong:       	White=2     	---} 1-0

[Event "FIDE Candidates 2024"]
[Site "Toronto"]
[Date "2024.04.18"]
[Round "12.1"]
[White "Nepomniachtchi, Ian"]
[Black "Praggnanandhaa R"]
[Result "1/2-1/2"]
[ECO "C01"]
[WhiteElo "2758"]
[BlackElo "2747"]
[Annotator "TA"]
[PlyCount "109"]
[EventDate "2024.04.02"]
[EventType "tourn"]
[EventCountry "CAN"]
[SourceTitle "playchess.com"]
[Source "ChessBase"]
[SourceQuality "1"]
[TimeControl "40/7200:1800+30"]

{[%evp 31,109,-8,0,-21,-14,-19,-30,-33,-34,-34,-32,-28,-32,-21,-22,-29,-9,-14,-14,-13,-14,-4,-4,-4,-4,-34,-43,-36,-34,-33,-35,-52,-45,-33,-45,-33,0,-20,-28,-20,-15,-31,0,0,0,0,0,0,0,0,0,0,0,0,0,4,8,8,8,0,0,0,0,0,0,0,0,0,0,0,0,0,0,0,0,0,0,0,0,0]} 1. e4 {[%emt 0:00:03]} e6 {[%emt 0:01:00]} 2. d4 {[%emt 0:00:07]} d5 {[%emt 0:00:06]} 3. exd5 {[%emt 0:00:04]} exd5 {[%emt 0:00:07]} 4. Nf3 {[%emt 0:00:06]} Nc6 {[%emt 0:00:31]} 5. Nc3 {[%emt 0:00:07]} Nge7 {[%emt 0:01:45]} 6. a3 {[%emt 0:01:19] C01: French: Exchange Variation.} Bf5 {[%emt 0:06:30]} 7. Be3 $146 {[%emt 0:02:07]} ({Predecessor:} 7. Be2 g6 8. O-O Bg7 9. Bf4 O-O 10. Re1 Re8 11. Bb5 a6 12. Bxc6 bxc6 13. Be5 {1-0 Toker,D (1118)-Groetzbach,D GER-ch U10 Willingen 2006 (3)}) 7... Qd7 {[%emt 0:07:37]} 8. Be2 {[%emt 0:01:11]} Ng6 {[%emt 0:08:30]} 9. h4 {[%emt 0:08:48]} h5 {[%emt 0:00:51]} 10. Nd2 {[%emt 0:01:43]} Bg4 {[%emt 0:07:10]} 11. Nb3 {[%emt 0:11:52]} Be7 {[%emt 0:10:30]} 12. g3 {[%emt 0:03:32]} Bxe2 {[%emt 0:00:09]} 13. Qxe2 {[%emt 0:00:06]} O-O-O {[%emt 0:00:07]} 14. O-O-O {[%emt 0:02:33]} Qf5 {[%emt 0:05:08]} 15. Na4 {[%emt 0:01:08]} Nf8 {[%emt 0:07:26]} 16. Rd3 {[%emt 0:12:34]} Qg4 {[%emt 0:07:02]} 17. Qd2 {[%emt 0:12:34]} b6 {[%emt 0:01:31]} 18. Nc3 {[%emt 0:05:01]} Ne6 {[%emt 0:03:42]} 19. Qe2 {[%emt 0:01:39]} Qxe2 {[%emt 0:05:25]} 20. Nxe2 {[%emt 0:00:26]} Bd6 {[%emt 0:00:05]} 21. Bd2 {[%emt 0:01:17]} a5 {[%emt 0:01:22]} 22. a4 {[%emt 0:00:05]} Ne7 {[%emt 0:05:47]} 23. Rf3 {[%emt 0:00:30]} f6 {[%emt 0:01:42]} 24. Bf4 {[%emt 0:01:27]} Nf5 {[%emt 0:01:58]} 25. c3 {[%emt 0:02:17]} Bxf4+ {[%emt 0:03:12]} 26. Nxf4 {[%emt 0:00:12]} Nxf4 {[%emt 0:00:08]} 27. Rxf4 {[%emt 0:00:08]} Nd6 {[%emt 0:00:46]} 28. Nd2 {[%emt 0:00:17]} Rde8 {[%emt 0:00:38]} 29. Kd1 $1 {[%emt 0:00:10]} Re6 {[%emt 0:04:33]} 30. Re1 {[%emt 0:02:47]} Kd7 {[%emt 0:03:05]} 31. Rf3 {[%emt 0:00:04]} Rxe1+ {[%emt 0:03:46]} 32. Kxe1 {[%emt 0:00:08]} Re8+ {[%emt 0:00:01]} 33. Kd1 {[%emt 0:00:52]} Kc6 {[%emt 0:03:45]} 34. Rf4 {[%emt 0:02:11]} b5 {[%emt 0:02:01]} 35. axb5+ {[%emt 0:04:37]} Kxb5 {[%emt 0:00:04]} 36. g4 {[%emt 0:00:19]} hxg4 {[%emt 0:02:27]} 37. Rxg4 {[%emt 0:00:06]} Re7 {[%emt 0:00:04]} 38. b3 {[%emt 0:02:30]} a4 {[%emt 0:02:29]} 39. bxa4+ {[%emt 0:00:06]} Kxa4 {[%emt 0:00:03]} 40. Kc2 {[%emt 0:00:00]} Nf5 {[%emt 0:00:00]} 41. Rf4 {[%emt 0:07:40]} Nd6 {[%emt 0:05:36]} 42. Rg4 {[%emt 0:00:34]} f5 {[%emt 0:17:18]} 43. Rg2 {[%emt 0:02:36]} f4 {[%emt 0:03:06]} 44. Kd3 {[%emt 0:10:23]} Ne4 {[%emt 0:01:57]} 45. Nxe4 {[%emt 0:02:05]} dxe4+ {[%emt 0:00:04]} 46. Kc2 {[%emt 0:01:22]} c5 {[%emt 0:04:42]} 47. dxc5 {[%emt 0:07:57]} Kb5 {[%emt 0:00:08]} 48. Rg4 {[%emt 0:02:37]} e3 {[%emt 0:00:24]} 49. fxe3 {[%emt 0:00:05]} (49. Rxf4 $2 {loses.} e2 (49... Kxc5 50. fxe3 Rxe3 51. Rg4 $16) 50. Rb4+ Kxc5 $19) 49... fxe3 {[%emt 0:00:05]} 50. Kd1 {[%emt 0:00:08]} e2+ {[%emt 0:00:08]} 51. Ke1 {[%emt 0:00:02]} Kxc5 {[%emt 0:00:05]} 52. Rg2 {[%emt 0:00:07]} Re4 {[%emt 0:00:10]} 53. h5 {[%emt 0:00:20]} Re5 {[%emt 0:00:14]} 54. Rxg7 {[%emt 0:00:08]} Rxh5 {[%emt 0:00:04]} 55. Kxe2 {[%emt 0:00:04]} 1/2-1/2

[Event "FIDE Candidates 2024"]
[Site "Toronto"]
[Date "2024.04.18"]
[Round "12.2"]
[White "Nakamura, Hikaru"]
[Black "Firouzja, Alireza"]
[Result "1-0"]
[ECO "C01"]
[WhiteElo "2789"]
[BlackElo "2760"]
[Annotator "TA"]
[PlyCount "103"]
[EventDate "2024.04.02"]
[EventType "tourn"]
[EventCountry "CAN"]
[SourceTitle "playchess.com"]
[Source "ChessBase"]
[SourceQuality "1"]
[TimeControl "40/7200:1800+30"]

{[%evp 40,103,0,4,109,120,133,113,117,124,122,119,116,112,118,111,139,131,179,144,160,83,229,224,214,208,225,229,232,91,104,79,78,103,120,68,73,56,46,55,43,8,82,74,384,285,271,293,295,290,280,274,297,284,444,426,418,433,653,653,675,675,616,597,575,527]} 1. e4 {[%emt 0:00:05]} e6 {[%emt 0:00:21]} 2. d4 {[%emt 0:00:16]} d5 {[%emt 0:00:00]} 3. exd5 {[%emt 0:00:08]} exd5 {[%emt 0:00:00]} 4. Nf3 {[%emt 0:00:05]} Bd6 {[%emt 0:00:00]} 5. c4 {[%emt 0:00:12]} Nf6 {[%emt 0:00:08]} 6. c5 {[%emt 0:00:40]} Be7 {[%emt 0:00:06]} 7. Qa4+ {[%emt 0:00:11] C01: French: Exchange Variation.} Bd7 {[%emt 0:05:10]} 8. Qc2 {[%emt 0:00:27]} O-O {[%emt 0:04:24]} 9. Be3 {[%emt 0:00:18]} Nc6 {[%emt 0:01:46]} 10. Nc3 {[%emt 0:02:55]} b6 {[%emt 0:14:01]} 11. Be2 {[%emt 0:12:55]} Nb4 {[%emt 0:09:57]} 12. Qd2 {[%emt 0:00:00]} Bf5 $146 {[%emt 0:00:17]} ({Predecessor:} 12... a5 13. cxb6 cxb6 14. O-O Ne4 15. Qd1 Be6 16. a3 Nc6 17. Rc1 Na7 18. Bd3 f5 {1-0 Bacrot,E (2678)-Fodor,T (2529) BCF-chT1c 1819 (4NCL) Promotion pool 2018 (10.13)}) 13. Rc1 {[%emt 0:00:04]} Ng4 {[%emt 0:00:15]} 14. Bf4 {[%emt 0:13:34]} bxc5 {[%emt 0:01:14]} 15. dxc5 {[%emt 0:00:30]} Bxc5 {[%emt 0:02:03]} 16. O-O {[%emt 0:01:14]} Re8 {[%emt 0:23:18]} 17. a3 {[%emt 0:15:01]} d4 {[%emt 0:03:15]} 18. Nb5 {[%emt 0:09:22]} d3 {[%emt 0:19:56]} 19. Rxc5 {[%emt 0:21:49]} dxe2 {[%emt 0:00:07]} 20. Re1 {[%emt 0:00:02]} Nd3 {[%emt 0:01:01]} (20... Qxd2 21. Bxd2 $16) 21. Rxf5 {[%emt 0:00:38]} Nxe1 {[%emt 0:01:44]} (21... Qd7 $1 $11 22. Nbd4 Nxe1 23. Qxe1 (23. Nxe1 $2 Re4 $19) 23... Re4) 22. Nxe1 $16 {[%emt 0:02:39]} Qxd2 {[%emt 0:13:51]} 23. Bxd2 {[%emt 0:00:20]} Rad8 {[%emt 0:00:16]} 24. Bc3 {[%emt 0:02:32]} (24. Nxc7 $2 Rxd2 25. h3 Rd1 26. hxg4 Rxe1+ 27. Kh2 Rd1 $19 (27... Rh1+ $2 28. Kxh1 e1=Q+ 29. Kh2 $19) (27... Rh1+ $2 28. Kxh1 g6 29. Kh2 $19)) 24... Rd1 {[%emt 0:00:47] [#]} 25. f3 $1 {[%emt 0:02:24]} Ne3 {[%emt 0:02:44]} 26. Nxc7 {[%emt 0:05:38]} Re7 {[%emt 0:00:38]} 27. Rc5 {[%emt 0:07:10]} f6 {[%emt 0:01:00]} 28. Bb4 {[%emt 0:01:03]} (28. Kf2 $2 Rc1 29. Kg3 (29. Kxe2 $2 Nxg2+ 30. Kd2 Rcxe1 $19) (29. Nd5 Nd1+ 30. Kg3 Rd7 $19) 29... Nd1 $19) 28... Kf7 {[%emt 0:05:10]} (28... Rb1 $16 29. Nd5 Nxd5 30. Rxd5 Rc7 31. Rd8+ Kf7) 29. h4 {[%emt 0:00:01]} (29. Kf2 Rdd7 30. Nb5 Kg6 $11) 29... h5 {[%emt 0:01:13]} 30. Kf2 {[%emt 0:01:38]} (30. b3 $142) 30... Rb1 {[%emt 0:00:18]} (30... Rxe1 $16 {was necessary.} 31. Bxe1 Nd1+ 32. Kg1 Nxb2) 31. Nd5 $18 {[%emt 0:00:13]} (31. Kxe2 $2 Nxg2+ (31... Rxb2+ 32. Kd3 $11) 32. Kf2 Nxe1 $19) 31... Nd1+ {[%emt 0:00:30]} 32. Kg3 {[%emt 0:00:04]} Re5 {[%emt 0:02:01]} 33. Nd3 {[%emt 0:02:27]} Re8 {[%emt 0:00:04]} 34. Be1 {[%emt 0:02:24]} (34. Rc7+ $18 {and White stays clearly on top.} Kg8 35. Ne7+ (35. Rxa7 Nxb2 36. Nxb2 Rxb2 $18) 35... Kh7 36. Rb7 (36. Rxa7 Rb8 $16)) 34... Nxb2 $16 {[%emt 0:01:00]} 35. Rb5 {[%emt 0:00:54]} Rd1 {[%emt 0:00:28]} 36. Rxb2 {[%emt 0:01:43]} (36. Rb7+ Kg8 37. Rxb2 (37. Nxb2 $2 Rxe1 38. Ne7+ Kf7 $19) 37... Rxd3 $15) 36... Rxd3 {[%emt 0:00:01]} 37. Rb7+ {[%emt 0:00:07]} Kf8 $1 {[%emt 0:00:09]} 38. Nf4 {[%emt 0:04:21]} Rxa3 {[%emt 0:00:01]} 39. Kf2 {[%emt 0:00:07]} a5 {[%emt 0:00:12]} 40. Ra7 {[%emt 0:00:00]} (40. Nxe2 $2 Ra2 41. Kf1 Rexe2 $19 (41... Raxe2 $2 42. Bxa5 Ra2 43. Bb4+ Kg8 44. Re7 $19)) 40... Ra4 {[%emt 0:00:00]} (40... a4 $11 {remains equal.}) 41. g3 $16 {[%emt 0:01:10]} (41. Nxe2 $2 Ra2 $19 (41... Rxh4 42. Rxa5 Rb8 43. Bc3 $14) (41... Rxh4 42. Rxa5 Rb8 43. Kg3 $14)) 41... g5 $2 {[%emt 0:06:13][%mdl 8192]} (41... Ra3 $16 {is tougher.}) 42. hxg5 {[%emt 0:01:18]} (42. Nxh5 gxh4 43. gxh4 (43. Nxf6 hxg3+ 44. Kxg3 Re7 $11) 43... Rxh4 44. Rxa5 (44. Nxf6 Re6 $11) 44... Rb8 $16) (42. Nxe2 Ra2 $11 (42... gxh4 43. Rxa5 Rxa5 44. Bxa5 $11) (42... gxh4 43. Rxa5 Rxa5 44. Bxa5 $11)) 42... fxg5 {[%emt 0:00:35]} 43. Nxh5 {[%emt 0:00:04]} (43. Nxe2 Ra2 $17) 43... Re5 {[%emt 0:01:34] [#]} 44. g4 $1 {[%emt 0:02:15]} (44. Nf6 Rf5 45. Nd7+ Ke8 $11) 44... Ke8 {[%emt 0:08:12]} 45. Ng7+ {[%emt 0:02:39]} Kf8 {[%emt 0:02:30]} 46. Nf5 {[%emt 0:00:43]} Ra2 {[%emt 0:01:18]} (46... Rd5 $142 47. Bc3 (47. Kxe2 Ra2+ 48. Kf1 Rd1 $11) 47... Ra3) 47. Ra8+ $18 {[%emt 0:00:50]} Kf7 {[%emt 0:00:21]} 48. Nd6+ {[%emt 0:08:02]} Ke6 {[%emt 0:02:09]} (48... Ke7 $142) 49. Nc4 $18 {[%emt 0:00:29]} Rb5 {[%emt 0:00:37]} 50. Rxa5 {[%emt 0:00:15]} (50. Bxa5 $2 {leads to mate.} e1=Q+ 51. Kxe1 Rb1#) 50... Rbxa5 {[%emt 0:00:19]} 51. Nxa5 {[%emt 0:00:23]} ({Not} 51. Bxa5 Ra4 $11) 51... Kd5 {[%emt 0:00:07]} 52. Ke3 {[%emt 0:00:37]} 1-0

[Event "FIDE Candidates 2024"]
[Site "Toronto"]
[Date "2024.04.20"]
[Round "13.1"]
[White "Nepomniachtchi, Ian"]
[Black "Nakamura, Hikaru"]
[Result "1/2-1/2"]
[ECO "C64"]
[WhiteElo "2758"]
[BlackElo "2789"]
[Annotator "TA"]
[PlyCount "52"]
[EventDate "2024.04.02"]
[EventType "tourn"]
[EventCountry "CAN"]
[SourceTitle "playchess.com"]
[Source "ChessBase"]
[SourceQuality "1"]
[TimeControl "40/7200:1800+30"]

{[%evp 10,52,78,35,37,46,44,37,37,31,27,34,33,24,30,40,33,37,36,40,27,45,47,50,60,8,22,16,10,0,0,0,0,0,0,0,0,-12,0,0,0,-10,0,0,0]} 1. e4 {[%emt 0:00:05]} e5 {[%emt 0:00:14]} 2. Nf3 {[%emt 0:00:07]} Nc6 {[%emt 0:00:04]} 3. Bb5 {[%emt 0:00:25]} a6 {[%emt 0:00:15]} 4. Ba4 {[%emt 0:00:08]} Bc5 {[%emt 0:00:04]} 5. O-O {[%emt 0:00:44]} Nge7 {[%emt 0:00:04]} 6. c3 {[%emt 0:05:17]} (6. Nxe5 $5 Nxe5 7. d4 $14) 6... Ng6 {[%emt 0:00:35]} 7. d4 {[%emt 0:00:41]} Ba7 {[%emt 0:00:04]} 8. Bg5 {[%emt 0:01:54]} f6 {[%emt 0:00:47] White is slightly better.} 9. Be3 {[%emt 0:00:08]} O-O {[%emt 0:00:03]} 10. Nbd2 {[%emt 0:00:47]} Kh8 {[%emt 0:00:51]} 11. Re1 {[%emt 0:03:04]} exd4 {[%emt 0:00:35]} 12. Nxd4 {[%emt 0:01:46]} Nxd4 {[%emt 0:00:17]} 13. Bxd4 {[%emt 0:09:32]} Bxd4 {[%emt 0:00:31]} 14. cxd4 {[%emt 0:00:08]} d5 {[%emt 0:00:02]} 15. exd5 {[%emt 0:09:51]} Qxd5 {[%emt 0:14:26]} 16. Ne4 {[%emt 0:01:05]} Qd8 {[%emt 0:00:30]} 17. Bc2 {[%emt 0:11:38]} (17. d5 $14) 17... f5 $11 {[%emt 0:12:08] The position is equal.} 18. Nc5 {[%emt 0:02:30][%cal Be4c5,Bc5d3,Bd3e5][%mdl 32]} b6 {[%emt 0:15:23]} 19. Nd3 {[%emt 0:12:31]} Bb7 {[%emt 0:08:52][%cal Od8g5]} 20. Ne5 {[%emt 0:00:37]} Qg5 {[%emt 0:01:13][%csl Gb7][%cal Rg5g2] [#]} 21. d5 {[%emt 0:11:34]} Rad8 {[%emt 0:23:57]} 22. Bb3 {[%emt 0:00:05]} c5 {[%emt 0:02:40]} 23. Nf3 {[%emt 0:05:21]} Qh5 {[%emt 0:01:59]} 24. Ne5 {[%emt 0:09:42]} Qg5 {[%emt 0:01:19]} 25. Nf3 {[%emt 0:03:07]} Qh5 {[%emt 0:10:39]} 26. Ne5 {[%emt 0:01:21]} Qg5 {[%emt 0:02:41] Weighted Error Value: White=0.09 (flawless) /Black=0.02 (flawless) .  Mistake:       	White=1     	---        OK:         	White=8     	Black=10     Best:        	White=1     	Black=1} 1/2-1/2